[Event "Fagernes Chess GM-Swiss 2025"]
[Site "Fagernes"]
[Date "2025.04.15"]
[Round "3.16"]
[White "Torfoss, Sivert Schanche"]
[Black "Dotzer, Lukas"]
[Result "0-1"]
[Annotator "RC"]
[ECO "D02"]
[WhiteElo "2141"]
[BlackElo "2453"]
[PlyCount "110"]
[EventDate "2025.04.12"]
[EventCountry "NOR"]
[SourceTitle "playchess.com"]
[Source "ChessBase"]
[SourceQuality "1"]
[TimeControl "40/6000+30:2400+30"]

1. Nf3 {[%emt 0:00:05]} d5 {[%emt 0:00:04]} 2. g3 {[%emt 0:00:05]} Nd7 {[%emt 0:00:06]} 3. d4 {[%emt 0:00:16]} Nb6 {[%emt 0:00:06]} 4. Bg2 {[%emt 0:01:41]} Bf5 {[%emt 0:00:05]} 5. O-O {[%emt 0:01:54]} e6 {[%emt 0:00:05]} 6. Nbd2 {[%emt 0:10:53]} Be7 {[%emt 0:00:07]} 7. c4 {[%emt 0:02:55]} c6 {[%emt 0:00:05]} 8. Qb3 {[%emt 0:03:03]} dxc4 {[%emt 0:00:19]} 9. Nxc4 {[%emt 0:01:03]} Nxc4 {[%emt 0:00:06]} 10. Qxc4 {[%emt 0:00:09]} Be4 {[%emt 0:00:06]} 11. Bf4 {[%emt 0:16:58]} Nf6 {[%emt 0:00:35]} 12. a4 {[%emt 0:06:58]} a5 {[%emt 0:08:00]} 13. Qb3 {[%emt 0:02:59]} Bb4 {[%emt 0:02:10]} 14. Be5 {[%emt 0:05:42]} O-O {[%emt 0:11:23]} 15. Qe3 {[%emt 0:10:59]} Qd5 {[%emt 0:08:39]} 16. Bxf6 {[%emt 0:18:23]} gxf6 {[%emt 0:00:05]} 17. Qf4 {[%emt 0:02:41]} Qf5 {[%emt 0:06:30]} 18. Qe3 {[%emt 0:03:20]} Bd5 {[%emt 0:04:04]} 19. Rac1 {[%emt 0:04:17]} Rfc8 {[%emt 0:11:43]} 20. Nh4 {[%emt 0:01:29]} Qh5 {[%emt 0:02:31]} 21. Qf4 {[%emt 0:08:35]} Qxe2 {[%emt 0:03:31]} 22. Qxf6 {[%emt 0:02:16]} Bf8 {[%emt 0:13:46]} 23. Rce1 {[%emt 0:01:08]} Qg4 {[%emt 0:02:06]} 24. Bf3 {[%emt 0:04:03]} Qg7 {[%emt 0:08:36]} 25. Qf4 {[%emt 0:00:03]} Bb4 {[%emt 0:00:23]} 26. Rc1 {[%emt 0:00:40]} Bb3 {[%emt 0:06:18]} 27. Bd1 {[%emt 0:00:17]} Bd5 {[%emt 0:00:48]} 28. Bc2 {[%emt 0:00:36]} Rd8 {[%emt 0:03:03]} 29. Rfd1 {[%emt 0:00:15]} Be7 {[%emt 0:02:01]} 30. Nf3 {[%emt 0:00:28]} Bxf3 {[%emt 0:00:56]} 31. Qxf3 {[%emt 0:00:07]} Bf6 {[%emt 0:00:28]} 32. b3 {[%emt 0:01:20]} Bxd4 {[%emt 0:00:16]} 33. Re1 {[%emt 0:00:16]} Rd5 {[%emt 0:07:03]} 34. Be4 {[%emt 0:00:32]} Rd6 {[%emt 0:01:58]} 35. Bb1 {[%emt 0:00:46]} Qh6 {[%emt 0:05:21]} 36. Rcd1 {[%emt 0:00:30]} Rad8 {[%emt 0:01:20]} 37. Bc2 {[%emt 0:00:37]} e5 {[%emt 0:03:11]} 38. Re4 {[%emt 0:00:23]} Bxf2+ {[%emt 0:00:46]} 39. Kg2 {[%emt 0:00:37]} Rd2 {[%emt 0:00:46]} 40. Rg4+ {[%emt 0:00:37]} Kf8 {[%emt 0:00:20]} 41. Rh4 {[%emt 0:06:58]} Qe3 {[%emt 0:04:33]} 42. Rxd2 {[%emt 0:05:01]} Rxd2 {[%emt 0:00:33]} 43. Qxe3 {[%emt 0:01:41]} Bxe3+ {[%emt 0:00:06]} 44. Kf3 {[%emt 0:00:04]} Rxc2 {[%emt 0:02:36]} 45. Kxe3 {[%emt 0:00:06]} Rc3+ {[%emt 0:04:48]} 46. Ke4 {[%emt 0:00:19]} Rxb3 {[%emt 0:01:38]} 47. Kxe5 {[%emt 0:00:29]} Rb4 {[%emt 0:01:39]} 48. Rxh7 {[%emt 0:00:11]} Kg8 {[%emt 0:00:12]} 49. Rh5 {[%emt 0:00:22]} Rxa4 {[%emt 0:00:44]} 50. Kf6 {[%emt 0:00:05]} Ra3 {[%emt 0:02:37]} 51. Rg5+ {[%emt 0:00:15]} Kf8 {[%emt 0:00:26]} 52. Rf5 {[%emt 0:00:07]} a4 {[%emt 0:01:32]} 53. g4 {[%emt 0:00:28]} b5 {[%emt 0:02:45]} 54. h4 {[%emt 0:00:08]} Rd3 {[%emt 0:00:45]} 55. Rh5 {[%emt 0:00:14]} Rd6+ {[%emt 0:00:09]} 0-1

[Event "Fagernes Chess GM-Swiss 2025"]
[Site "Fagernes"]
[Date "2025.04.15"]
[Round "3.17"]
[White "Zhou, Yang-Fan"]
[Black "Ostensen, Nicolai Maxime"]
[Result "1-0"]
[Annotator "RC"]
[ECO "C55"]
[WhiteElo "2418"]
[BlackElo "2260"]
[PlyCount "85"]
[EventDate "2025.04.12"]
[EventCountry "NOR"]
[SourceTitle "playchess.com"]
[Source "ChessBase"]
[SourceQuality "1"]
[TimeControl "40/6000+30:2400+30"]

1. e4 {[%emt 0:00:02]} e5 {[%emt 0:02:35]} 2. Nf3 {[%emt 0:00:03]} Nc6 {[%emt 0:01:01]} 3. Bc4 {[%emt 0:00:07]} Nf6 {[%emt 0:00:23]} 4. d3 {[%emt 0:00:06]} h6 {[%emt 0:00:06]} 5. c3 {[%emt 0:00:29]} d6 {[%emt 0:00:12]} 6. O-O {[%emt 0:00:32]} g5 {[%emt 0:01:19]} 7. a4 {[%emt 0:01:32]} Bg7 {[%emt 0:01:06]} 8. Nbd2 {[%emt 0:01:19]} O-O {[%emt 0:17:59]} 9. a5 {[%emt 0:00:04]} a6 {[%emt 0:02:39]} 10. Re1 {[%emt 0:06:23]} g4 {[%emt 0:17:13]} 11. Nh4 {[%emt 0:00:05]} Nxe4 {[%emt 0:07:23]} 12. dxe4 {[%emt 0:00:05]} Qxh4 {[%emt 0:00:16]} 13. Nf1 {[%emt 0:00:05]} Be6 {[%emt 0:12:34]} 14. Qb3 {[%emt 0:05:26]} Bxc4 {[%emt 0:10:41]} 15. Qxc4 {[%emt 0:00:02]} Rac8 {[%emt 0:00:56]} 16. Ng3 {[%emt 0:09:45]} Qf6 {[%emt 0:05:31]} 17. Qe2 {[%emt 0:05:46]} Qg6 {[%emt 0:01:22]} 18. Be3 {[%emt 0:10:31]} Ne7 {[%emt 0:02:57]} 19. Ra4 {[%emt 0:06:03]} h5 {[%emt 0:02:04]} 20. Rb4 {[%emt 0:02:34]} f5 {[%emt 0:04:46]} 21. exf5 {[%emt 0:12:20]} Nxf5 {[%emt 0:01:00]} 22. Qc4+ {[%emt 0:00:04]} Kh8 {[%emt 0:03:42]} 23. Nxf5 {[%emt 0:01:06]} Qxf5 {[%emt 0:00:42]} 24. Rxb7 {[%emt 0:00:10]} c6 {[%emt 0:02:03]} 25. Qxa6 {[%emt 0:01:23]} h4 {[%emt 0:05:41]} 26. Qe2 {[%emt 0:28:15]} h3 {[%emt 0:01:56]} 27. Rb4 {[%emt 0:00:06]} e4 {[%emt 0:00:42]} 28. g3 {[%emt 0:00:05]} Be5 {[%emt 0:02:12]} 29. a6 {[%emt 0:06:25]} Ra8 {[%emt 0:02:01]} 30. a7 {[%emt 0:04:18]} c5 {[%emt 0:00:41]} 31. Ra4 {[%emt 0:00:30]} Rfc8 {[%emt 0:00:26]} 32. Qc4 {[%emt 0:02:07]} Rc7 {[%emt 0:01:33]} 33. Qxe4 {[%emt 0:00:33]} Qxe4 {[%emt 0:00:09]} 34. Rxe4 {[%emt 0:00:02]} Raxa7 {[%emt 0:00:33]} 35. Rxg4 {[%emt 0:01:01]} Ra2 {[%emt 0:00:13]} 36. Bc1 {[%emt 0:02:48]} Bf6 {[%emt 0:00:46]} 37. Rg6 {[%emt 0:02:24]} Re7 {[%emt 0:00:30]} 38. Kf1 {[%emt 0:00:54]} Ra1 {[%emt 0:00:50]} 39. Rxf6 {[%emt 0:01:09]} Rxe1+ {[%emt 0:00:05]} 40. Kxe1 {[%emt 0:00:03]} Rxc1+ {[%emt 0:00:08]} 41. Kd2 {[%emt 0:40:57]} Rb1 {[%emt 0:02:08]} 42. Rxd6 {[%emt 0:00:00]} Rxb2+ {[%emt 0:00:05]} 43. Ke3 {[%emt 0:00:00]} 1-0

[Event "Fagernes Chess GM-Swiss 2025"]
[Site "Fagernes"]
[Date "2025.04.15"]
[Round "3.18"]
[White "Verbin, Valentina"]
[Black "Miezis, Normunds"]
[Result "0-1"]
[Annotator "RC"]
[ECO "B41"]
[WhiteElo "2113"]
[BlackElo "2409"]
[PlyCount "78"]
[EventDate "2025.04.12"]
[EventCountry "NOR"]
[SourceTitle "playchess.com"]
[Source "ChessBase"]
[SourceQuality "1"]
[TimeControl "40/6000+30:2400+30"]

1. e4 {[%emt 0:02:22]} c5 {[%emt 0:00:16]} 2. Nf3 {[%emt 0:00:35]} e6 {[%emt 0:00:18]} 3. d4 {[%emt 0:00:33]} cxd4 {[%emt 0:00:12]} 4. Nxd4 {[%emt 0:00:10]} a6 {[%emt 0:00:11]} 5. c4 {[%emt 0:00:42]} Nf6 {[%emt 0:05:25]} 6. Nc3 {[%emt 0:00:49]} Bb4 {[%emt 0:00:21]} 7. Qd3 {[%emt 0:00:41]} O-O {[%emt 0:01:47]} 8. e5 {[%emt 0:00:54]} Ne8 {[%emt 0:00:46]} 9. Bf4 {[%emt 0:01:02]} d6 {[%emt 0:04:13]} 10. exd6 {[%emt 0:01:18]} Bxd6 {[%emt 0:12:20]} 11. Bxd6 {[%emt 0:02:09]} Qxd6 {[%emt 0:01:42]} 12. O-O-O {[%emt 0:01:17]} Nd7 {[%emt 0:02:46]} 13. Qg3 {[%emt 0:06:39]} Qxg3 {[%emt 0:11:21]} 14. hxg3 {[%emt 0:00:15]} Nef6 {[%emt 0:00:46]} 15. f3 {[%emt 0:06:50]} Re8 {[%emt 0:04:16]} 16. g4 {[%emt 0:12:34]} h6 {[%emt 0:01:06]} 17. Re1 {[%emt 0:06:04]} Nf8 {[%emt 0:06:00]} 18. Bd3 {[%emt 0:05:36]} Rd8 {[%emt 0:07:48]} 19. Rd1 {[%emt 0:16:31]} Rxd4 {[%emt 0:02:03]} 20. Bh7+ {[%emt 0:00:02]} N8xh7 {[%emt 0:01:06]} 21. Rxd4 {[%emt 0:00:05]} Bd7 {[%emt 0:00:19]} 22. Rhd1 {[%emt 0:01:24]} Nf8 {[%emt 0:00:42]} 23. b4 {[%emt 0:04:35]} Rc8 {[%emt 0:01:55]} 24. Re1 {[%emt 0:06:48]} Ng6 {[%emt 0:02:49]} 25. f4 {[%emt 0:01:37]} Rc7 {[%emt 0:17:00]} 26. g5 {[%emt 0:12:17]} hxg5 {[%emt 0:03:37]} 27. fxg5 {[%emt 0:00:03]} Nh7 {[%emt 0:03:55]} 28. Kb2 {[%emt 0:09:10]} Nxg5 {[%emt 0:03:49]} 29. b5 {[%emt 0:00:20]} Nf8 {[%emt 0:01:54]} 30. Red1 {[%emt 0:01:45]} f5 {[%emt 0:03:04]} 31. a4 {[%emt 0:02:39]} Nf7 {[%emt 0:06:23]} 32. a5 {[%emt 0:06:06]} Be8 {[%emt 0:01:58]} 33. Kb3 {[%emt 0:01:35]} g5 {[%emt 0:01:08]} 34. g4 {[%emt 0:01:30]} f4 {[%emt 0:00:26]} 35. Ne4 {[%emt 0:00:04]} Kg7 {[%emt 0:00:17]} 36. b6 {[%emt 0:00:32]} Re7 {[%emt 0:00:39]} 37. Nc5 {[%emt 0:00:42]} e5 {[%emt 0:00:40]} 38. R4d2 {[%emt 0:00:32]} e4 {[%emt 0:00:38]} 39. Re2 {[%emt 0:00:30]} e3 {[%emt 0:00:31]} 0-1

[Event "Fagernes Chess GM-Swiss 2025"]
[Site "Fagernes"]
[Date "2025.04.15"]
[Round "3.19"]
[White "Vestby-Ellingsen, Mads"]
[Black "Khoo-Thwe, Louis"]
[Result "1-0"]
[Annotator "RC"]
[ECO "C54"]
[WhiteElo "2398"]
[BlackElo "2118"]
[PlyCount "107"]
[EventDate "2025.04.12"]
[EventCountry "NOR"]
[SourceTitle "playchess.com"]
[Source "ChessBase"]
[SourceQuality "1"]
[TimeControl "40/6000+30:2400+30"]

1. e4 {[%emt 0:04:06]} e5 {[%emt 0:00:11]} 2. Nf3 {[%emt 0:00:13]} Nc6 {[%emt 0:00:06]} 3. Bc4 {[%emt 0:00:12]} Bc5 {[%emt 0:00:07]} 4. c3 {[%emt 0:00:13]} Nf6 {[%emt 0:00:07]} 5. d4 {[%emt 0:00:13]} exd4 {[%emt 0:00:07]} 6. b4 {[%emt 0:00:13]} Be7 {[%emt 0:02:30]} 7. b5 {[%emt 0:00:27]} Na5 {[%emt 0:01:23]} 8. Bd3 {[%emt 0:00:14]} d5 {[%emt 0:01:31]} 9. e5 {[%emt 0:01:00]} Ne4 {[%emt 0:00:15]} 10. cxd4 {[%emt 0:00:18]} Bf5 {[%emt 0:03:37]} 11. O-O {[%emt 0:02:22]} Qd7 {[%emt 0:05:04]} 12. Ne1 {[%emt 0:33:51]} c5 {[%emt 0:11:37]} 13. bxc6 {[%emt 0:16:13]} Nxc6 {[%emt 0:01:17]} 14. f3 {[%emt 0:01:23]} Nxd4 {[%emt 0:12:25]} 15. fxe4 {[%emt 0:07:19]} dxe4 {[%emt 0:00:29]} 16. Bc2 {[%emt 0:21:23]} Rc8 {[%emt 0:06:07]} 17. Na3 {[%emt 0:02:14]} Bg4 {[%emt 0:03:29]} 18. e6 {[%emt 0:01:21]} Qxe6 {[%emt 0:03:37]} 19. Qxd4 {[%emt 0:11:33]} Bc5 {[%emt 0:00:17]} 20. Qxc5 {[%emt 0:00:18]} Rxc5 {[%emt 0:00:06]} 21. Bb3 {[%emt 0:00:17]} Qe5 {[%emt 0:02:56]} 22. Nec2 {[%emt 0:03:46]} O-O {[%emt 0:03:59]} 23. Be3 {[%emt 0:00:20]} Rcc8 {[%emt 0:01:51]} 24. Bxa7 {[%emt 0:02:29]} Be6 {[%emt 0:02:27]} 25. Bd4 {[%emt 0:00:10]} Qd6 {[%emt 0:01:31]} 26. Rae1 {[%emt 0:00:51]} Bxb3 {[%emt 0:01:28]} 27. axb3 {[%emt 0:00:04]} Qd5 {[%emt 0:02:20]} 28. Nc4 {[%emt 0:00:30]} Rcd8 {[%emt 0:11:58]} 29. Bb6 {[%emt 0:00:47]} Rd7 {[%emt 0:01:09]} 30. Nd4 {[%emt 0:00:39]} Re8 {[%emt 0:04:59]} 31. Rf5 {[%emt 0:00:26]} Qxd4+ {[%emt 0:09:14]} 32. Bxd4 {[%emt 0:00:08]} Rxd4 {[%emt 0:00:02]} 33. Rb5 {[%emt 0:00:12]} Re7 {[%emt 0:00:51]} 34. Ne3 {[%emt 0:00:21]} g6 {[%emt 0:00:04]} 35. Kf2 {[%emt 0:01:20]} Red7 {[%emt 0:02:00]} 36. Nc4 {[%emt 0:00:31]} f5 {[%emt 0:00:57]} 37. Ra1 {[%emt 0:00:28]} Re7 {[%emt 0:02:48]} 38. Ra7 {[%emt 0:00:34]} e3+ {[%emt 0:01:11]} 39. Ke2 {[%emt 0:00:12]} Rf4 {[%emt 0:00:03]} 40. Re5 {[%emt 0:00:46]} Rxe5 {[%emt 0:02:48]} 41. Nxe5 {[%emt 0:40:07]} Rf2+ {[%emt 0:40:37]} 42. Kxe3 {[%emt 0:00:14]} Rxg2 {[%emt 0:00:07]} 43. h4 {[%emt 0:00:00]} Kg7 {[%emt 0:00:00]} 44. Rxb7+ {[%emt 0:00:00]} Kf6 {[%emt 0:00:00]} 45. Nf3 {[%emt 0:00:00]} h6 {[%emt 0:00:00]} 46. Rb6+ {[%emt 0:00:00]} Ke7 {[%emt 0:00:00]} 47. h5 {[%emt 0:00:00]} gxh5 {[%emt 0:00:00]} 48. Rxh6 {[%emt 0:00:00]} Rb2 {[%emt 0:00:00]} 49. Nd4 {[%emt 0:00:00]} Rh2 {[%emt 0:00:00]} 50. Nxf5+ {[%emt 0:00:00]} Kd7 {[%emt 0:00:00]} 51. Kd3 {[%emt 0:00:00]} Kc7 {[%emt 0:00:00]} 52. Kc4 {[%emt 0:00:00]} Rh1 {[%emt 0:00:00]} 53. b4 {[%emt 0:00:00]} Kb7 {[%emt 0:00:00]} 54. Kb5 {[%emt 0:00:00]} 1-0

[Event "Fagernes Chess GM-Swiss 2025"]
[Site "Fagernes"]
[Date "2025.04.15"]
[Round "3.20"]
[White "Aradhya, Garg"]
[Black "Skotheim, Andreas"]
[Result "1-0"]
[Annotator "RC"]
[ECO "A46"]
[WhiteElo "2387"]
[BlackElo "2229"]
[PlyCount "147"]
[EventDate "2025.04.12"]
[EventCountry "NOR"]
[SourceTitle "playchess.com"]
[Source "ChessBase"]
[SourceQuality "1"]
[TimeControl "40/6000+30:2400+30"]

1. d4 {[%emt 0:00:02]} Nf6 {[%emt 0:00:46]} 2. Nf3 {[%emt 0:00:05]} e6 {[%emt 0:00:58]} 3. Bg5 {[%emt 0:00:18]} h6 {[%emt 0:01:22]} 4. Bxf6 {[%emt 0:00:05]} Qxf6 {[%emt 0:00:20]} 5. e4 {[%emt 0:00:03]} g5 {[%emt 0:04:01]} 6. Nc3 {[%emt 0:01:10]} d6 {[%emt 0:08:01]} 7. e5 {[%emt 0:10:39]} dxe5 {[%emt 0:04:40]} 8. Ne4 {[%emt 0:02:58]} Qe7 {[%emt 0:02:33]} 9. Nxe5 {[%emt 0:05:09]} Bg7 {[%emt 0:04:30]} 10. h4 {[%emt 0:04:52]} Bxe5 {[%emt 0:15:02]} 11. dxe5 {[%emt 0:00:02]} Qb4+ {[%emt 0:00:13]} 12. Nc3 {[%emt 0:00:08]} Qxb2 {[%emt 0:00:32]} 13. Rh3 {[%emt 0:00:09]} g4 {[%emt 0:17:00]} 14. Bb5+ {[%emt 0:06:19]} Bd7 {[%emt 0:12:59]} 15. Rd3 {[%emt 0:00:24]} Bxb5 {[%emt 0:03:13]} 16. Rb1 {[%emt 0:00:31]} Qxb1 {[%emt 0:00:28]} 17. Qxb1 {[%emt 0:00:14]} Bc6 {[%emt 0:00:22]} 18. Nb5 {[%emt 0:14:59]} Na6 {[%emt 0:00:27]} 19. g3 {[%emt 0:01:58]} Ke7 {[%emt 0:08:56]} 20. Nd4 {[%emt 0:02:14]} Be4 {[%emt 0:01:19]} 21. Re3 {[%emt 0:00:07]} Bg2 {[%emt 0:02:23]} 22. f3 {[%emt 0:04:19]} gxf3 {[%emt 0:07:53]} 23. Nxf3 {[%emt 0:00:13]} Nc5 {[%emt 0:02:03]} 24. Qb4 {[%emt 0:01:50]} b6 {[%emt 0:00:20]} 25. Qf4 {[%emt 0:00:02]} Rad8 {[%emt 0:05:41]} 26. Re2 {[%emt 0:01:21]} Bxf3 {[%emt 0:00:29]} 27. Qf6+ {[%emt 0:00:17]} Kd7 {[%emt 0:00:19]} 28. Qxf7+ {[%emt 0:00:08]} Kc8 {[%emt 0:00:35]} 29. Qxf3 {[%emt 0:00:03]} Kb8 {[%emt 0:00:20]} 30. Qe3 {[%emt 0:07:52]} h5 {[%emt 0:00:49]} 31. Rd2 {[%emt 0:14:34]} Rdg8 {[%emt 0:01:04]} 32. Rd4 {[%emt 0:00:10]} Rg7 {[%emt 0:00:36]} 33. Qf3 {[%emt 0:02:42]} Rhg8 {[%emt 0:00:37]} 34. Qxh5 {[%emt 0:00:30]} Rxg3 {[%emt 0:00:09]} 35. Rf4 {[%emt 0:00:51]} Kb7 {[%emt 0:01:55]} 36. Kd2 {[%emt 0:17:29]} Rd8+ {[%emt 0:01:36]} 37. Kc1 {[%emt 0:00:10]} a5 {[%emt 0:01:01]} 38. Qe2 {[%emt 0:00:21]} Rdg8 {[%emt 0:01:18]} 39. h5 {[%emt 0:00:01]} Kb8 {[%emt 0:01:18]} 40. Rh4 {[%emt 0:01:38]} Rg2 {[%emt 0:01:43]} 41. Qf3 {[%emt 0:40:29]} R8g3 {[%emt 0:02:24]} 42. Qc6 {[%emt 0:00:00]} Rf2 {[%emt 0:07:04]} 43. Rd4 {[%emt 0:00:00]} Rg8 {[%emt 0:03:10]} 44. Kb2 {[%emt 0:00:00]} Rh2 {[%emt 0:01:58]} 45. Rc4 {[%emt 0:00:00]} Rxh5 {[%emt 0:02:58]} 46. Rxc5 {[%emt 0:00:00]} bxc5 {[%emt 0:00:07]} 47. Qxe6 {[%emt 0:00:00]} Rgh8 {[%emt 0:10:58]} 48. Qe7 {[%emt 0:00:00]} Kc8 {[%emt 0:03:44]} 49. e6 {[%emt 0:00:00]} Rd8 {[%emt 0:02:40]} 50. Qf7 {[%emt 0:00:00]} Rhh8 {[%emt 0:00:26]} 51. e7 {[%emt 0:00:00]} Rde8 {[%emt 0:00:02]} 52. Qf5+ {[%emt 0:00:00]} Kb7 {[%emt 0:01:20]} 53. Qxc5 {[%emt 0:00:00]} c6 {[%emt 0:01:21]} 54. Qd6 {[%emt 0:00:00]} Rb8 {[%emt 0:02:43]} 55. c4 {[%emt 0:00:00]} Rbg8 {[%emt 0:04:26]} 56. Kb3 {[%emt 0:00:00]} Ra8 {[%emt 0:01:26]} 57. Ka4 {[%emt 0:00:00]} Rhg8 {[%emt 0:01:34]} 58. c5 {[%emt 0:00:00]} Rac8 {[%emt 0:00:24]} 59. Kxa5 {[%emt 0:00:00]} Ra8+ {[%emt 0:00:34]} 60. Kb4 {[%emt 0:00:00]} Rac8 {[%emt 0:00:11]} 61. Kc3 {[%emt 0:00:00]} Ka6 {[%emt 0:00:50]} 62. a4 {[%emt 0:00:00]} Rh8 {[%emt 0:00:44]} 63. Qd7 {[%emt 0:00:00]} Rhg8 {[%emt 0:00:20]} 64. Kd4 {[%emt 0:00:00]} Ka5 {[%emt 0:00:38]} 65. Qa7+ {[%emt 0:00:00]} Kb4 {[%emt 0:00:02]} 66. a5 {[%emt 0:00:00]} Rb8 {[%emt 0:00:45]} 67. a6 {[%emt 0:00:00]} Kb5 {[%emt 0:00:43]} 68. Ke5 {[%emt 0:00:02]} Rh8 {[%emt 0:00:26]} 69. Kd6 {[%emt 0:00:26]} Rhg8 {[%emt 0:00:36]} 70. Kd7 {[%emt 0:01:43]} Rh8 {[%emt 0:00:30]} 71. Qxb8+ {[%emt 0:02:19]} Rxb8 {[%emt 0:00:10]} 72. a7 {[%emt 0:02:24]} Rb7+ {[%emt 0:00:41]} 73. Kd6 {[%emt 0:00:07]} Rxa7 {[%emt 0:00:12]} 74. e8=Q {[%emt 0:00:07]} 1-0

[Event "Fagernes Chess GM-Swiss 2025"]
[Site "Fagernes"]
[Date "2025.04.15"]
[Round "3.21"]
[White "Holand, Per Fredrik"]
[Black "Grave, Jacob Templen"]
[Result "0-1"]
[Annotator "RC"]
[ECO "E06"]
[WhiteElo "2070"]
[BlackElo "2337"]
[PlyCount "80"]
[EventDate "2025.04.12"]
[EventCountry "NOR"]
[SourceTitle "playchess.com"]
[Source "ChessBase"]
[SourceQuality "1"]
[TimeControl "40/6000+30:2400+30"]

1. c4 {[%emt 0:06:18]} e6 {[%emt 0:02:28]} 2. Nf3 {[%emt 0:11:06]} d5 {[%emt 0:01:20]} 3. g3 {[%emt 0:00:07]} Nf6 {[%emt 0:01:23]} 4. Bg2 {[%emt 0:00:10]} Be7 {[%emt 0:03:04]} 5. O-O {[%emt 0:00:35]} O-O {[%emt 0:00:07]} 6. d4 {[%emt 0:08:39]} c6 {[%emt 0:06:36]} 7. Nbd2 {[%emt 0:07:38]} b6 {[%emt 0:03:28]} 8. Qc2 {[%emt 0:00:14]} Bb7 {[%emt 0:00:42]} 9. e4 {[%emt 0:01:43]} Na6 {[%emt 0:00:03]} 10. e5 {[%emt 0:09:46]} Nd7 {[%emt 0:01:19]} 11. cxd5 {[%emt 0:02:44]} Nb4 {[%emt 0:01:41]} 12. Qe4 {[%emt 0:01:01]} cxd5 {[%emt 0:12:07]} 13. Qg4 {[%emt 0:00:35]} Ba6 {[%emt 0:02:15]} 14. Nb3 {[%emt 0:01:24]} Kh8 {[%emt 0:06:35]} 15. Rd1 {[%emt 0:02:38]} Be2 {[%emt 0:02:31]} 16. Rd2 {[%emt 0:00:51]} Bc4 {[%emt 0:01:35]} 17. Rd1 {[%emt 0:01:29]} Nxa2 {[%emt 0:04:36]} 18. Nfd2 {[%emt 0:02:02]} Nxc1 {[%emt 0:01:31]} 19. Nxc1 {[%emt 0:00:23]} Bb5 {[%emt 0:01:09]} 20. f4 {[%emt 0:01:11]} g6 {[%emt 0:03:36]} 21. Qf3 {[%emt 0:07:59]} a5 {[%emt 0:02:30]} 22. Nf1 {[%emt 0:00:43]} Nb8 {[%emt 0:06:29]} 23. Ne3 {[%emt 0:02:35]} Nc6 {[%emt 0:01:44]} 24. h4 {[%emt 0:08:51]} f6 {[%emt 0:21:04]} 25. Qg4 {[%emt 0:06:40]} f5 {[%emt 0:00:55]} 26. Qf3 {[%emt 0:01:51]} h5 {[%emt 0:00:29]} 27. Ne2 {[%emt 0:01:47]} Nb4 {[%emt 0:02:22]} 28. Kh2 {[%emt 0:00:25]} Qd7 {[%emt 0:01:04]} 29. Ng1 {[%emt 0:02:54]} Kg7 {[%emt 0:01:15]} 30. Nh3 {[%emt 0:00:10]} Rfc8 {[%emt 0:00:33]} 31. Rac1 {[%emt 0:01:06]} Rxc1 {[%emt 0:02:52]} 32. Rxc1 {[%emt 0:00:15]} Rc8 {[%emt 0:00:08]} 33. Rxc8 {[%emt 0:00:14]} Qxc8 {[%emt 0:00:05]} 34. Bf1 {[%emt 0:00:16]} Qa6 {[%emt 0:02:15]} 35. Bxb5 {[%emt 0:06:31]} Qxb5 {[%emt 0:00:08]} 36. Nf2 {[%emt 0:00:29]} Nc6 {[%emt 0:01:08]} 37. g4 {[%emt 0:05:02]} Nxd4 {[%emt 0:02:09]} 38. Qg2 {[%emt 0:00:59]} hxg4 {[%emt 0:00:31]} 39. Nfxg4 {[%emt 0:03:37]} fxg4 {[%emt 0:00:15]} 40. f5 {[%emt 0:00:16]} exf5 {[%emt 0:01:04]} 0-1

[Event "Fagernes Chess GM-Swiss 2025"]
[Site "Fagernes"]
[Date "2025.04.15"]
[Round "3.22"]
[White "Adharsh K"]
[Black "Stromhaug, Kristoffer Wang"]
[Result "1-0"]
[Annotator "RC"]
[ECO "B38"]
[WhiteElo "2317"]
[BlackElo "2020"]
[PlyCount "63"]
[EventDate "2025.04.12"]
[EventCountry "NOR"]
[SourceTitle "playchess.com"]
[Source "ChessBase"]
[SourceQuality "1"]
[TimeControl "40/6000+30:2400+30"]

1. e4 {[%emt 0:06:48]} c5 {[%emt 0:00:04]} 2. Nf3 {[%emt 0:00:11]} g6 {[%emt 0:00:11]} 3. d4 {[%emt 0:00:48]} cxd4 {[%emt 0:00:11]} 4. Nxd4 {[%emt 0:00:18]} Bg7 {[%emt 0:00:17]} 5. c4 {[%emt 0:01:21]} Nc6 {[%emt 0:00:10]} 6. Be3 {[%emt 0:00:26]} Qb6 {[%emt 0:00:23]} 7. Nb3 {[%emt 0:01:56]} Qd8 {[%emt 0:00:29]} 8. Nd4 {[%emt 0:01:44]} Qb6 {[%emt 0:00:42]} 9. Nb3 {[%emt 0:00:06]} Qd8 {[%emt 0:00:12]} 10. Qd2 {[%emt 0:00:21]} Nf6 {[%emt 0:07:11]} 11. f3 {[%emt 0:00:07]} d6 {[%emt 0:02:12]} 12. Be2 {[%emt 0:00:05]} O-O {[%emt 0:05:44]} 13. O-O {[%emt 0:00:45]} Be6 {[%emt 0:21:57]} 14. Nc3 {[%emt 0:01:58]} Nd7 {[%emt 0:02:44]} 15. Nd5 {[%emt 0:03:43]} f5 {[%emt 0:07:45]} 16. exf5 {[%emt 0:10:08]} Bxf5 {[%emt 0:08:45]} 17. Rad1 {[%emt 0:01:28]} Nde5 {[%emt 0:12:52]} 18. Kh1 {[%emt 0:11:37]} Rc8 {[%emt 0:04:10]} 19. Rfe1 {[%emt 0:00:26]} Kh8 {[%emt 0:03:01]} 20. Nd4 {[%emt 0:04:41]} Nxd4 {[%emt 0:03:55]} 21. Bxd4 {[%emt 0:00:13]} b6 {[%emt 0:01:29]} 22. b3 {[%emt 0:00:17]} Qe8 {[%emt 0:05:59]} 23. f4 {[%emt 0:02:37]} Nc6 {[%emt 0:00:55]} 24. Bxg7+ {[%emt 0:00:06]} Kxg7 {[%emt 0:00:05]} 25. Bf3 {[%emt 0:00:39]} Qf7 {[%emt 0:06:54]} 26. Qc3+ {[%emt 0:04:35]} e5 {[%emt 0:01:10]} 27. fxe5 {[%emt 0:00:33]} dxe5 {[%emt 0:04:08]} 28. Rxe5 {[%emt 0:05:18]} Nxe5 {[%emt 0:00:20]} 29. Qxe5+ {[%emt 0:00:07]} Kh6 {[%emt 0:00:24]} 30. g4 {[%emt 0:00:12]} g5 {[%emt 0:01:27]} 31. gxf5 {[%emt 0:00:49]} Qxf5 {[%emt 0:00:02]} 32. Qxf5 {[%emt 0:00:12]} 1-0